fUSD/lending_fUSD_20241121
["ID","MTS","AMOUNT","RATE_DAILY","PERIOD"]
[342949021,1732217452719,-150.0,0.00040218,2]
[342949022,1732217452729,-150.0,0.00040218,2]
[342949023,1732217452738,-1500.0,0.00040222,5]
[342949024,1732217452747,-150.0,0.00040223,2]
[342949025,1732217452756,-150.0,0.00040223,2]
[342949026,1732217452769,-150.0,0.00040225,2]
[342949027,1732217452778,-150.0,0.00040227,2]
[342949028,1732217452787,-150.0,0.00040229,2]
[342949029,1732217452796,-150.0,0.0004023,2]
[342949030,1732217452807,-150.0,0.00040231,2]
[342949031,1732217452816,-150.0,0.00040235,2]
[342949032,1732217452825,-150.0,0.00040236,2]
[342949033,1732217452835,-150.0,0.0004024,2]
[342949034,1732217452846,-150.0,0.0004024,2]
[342949035,1732217452855,-150.0,0.00040241,2]
[342949036,1732217452864,-1280.0,0.00040242,120]
[342949037,1732217452874,-150.0,0.00040244,2]
[342949038,1732217452883,-150.0,0.00040244,2]
[342949039,1732217452897,-150.0,0.00040246,2]
[342949040,1732217452907,-150.0,0.00040247,2]
[342949041,1732217452916,-150.0,0.00040256,2]
[342949042,1732217452926,-150.0,0.00040256,2]
[342949043,1732217452935,-150.0,0.00040266,2]
[342949044,1732217452945,-150.0,0.00040269,2]
[342949045,1732217452954,-150.0,0.0004027,2]
[342949046,1732217452963,-50375.1955843,0.00040273,30]
[342949047,1732217452973,-500.0,0.00040273,30]
[342949048,1732217452983,-333.39,0.00040273,14]
[342949049,1732217452992,-333.39,0.00040273,14]
[342949050,1732217453002,-219.815437,0.00040273,14]
[342949051,1732217453011,-219.815437,0.00040273,14]
[342949052,1732217453021,-208.901966,0.00040273,14]
[342949053,1732217453030,-151.0,0.00040273,14]
[342949054,1732217453039,-208.901966,0.00040273,14]
[342949055,1732217453049,-151.0,0.00040273,14]
[342949056,1732217453058,-151.0,0.00040273,14]
[342949057,1732217453067,-284.08075,0.00040273,14]
[342949058,1732217453076,-151.0,0.00040273,14]
[342949059,1732217453086,-151.0,0.00040273,14]
[342949060,1732217453095,-374.7389,0.00040273,14]
[342949061,1732217453104,-374.7389,0.00040273,14]
[342949062,1732217453113,-262.5162,0.00040273,14]
[342949063,1732217453123,-262.5162,0.00040273,14]
[342949064,1732217453133,-264.857564,0.00040273,14]
[342949065,1732217453146,-264.857564,0.00040273,14]
[342949066,1732217453155,-151.0,0.00040273,14]
[342949067,1732217453164,-151.0,0.00040273,14]
[342949068,1732217453174,-151.0,0.00040273,14]
[342949069,1732217453183,-330.6625,0.00040273,14]
[342949070,1732217453192,-330.6625,0.00040273,14]
[342949071,1732217453201,-526.559534,0.00040273,14]
[342949072,1732217453210,-2000.0,0.00040273,7]
[342949073,1732217453219,-200.0,0.00040273,7]
[342949074,1732217453228,-456.53,0.00040273,11]
[342949075,1732217453237,-2000.0,0.00040273,15]
[342949076,1732217453247,-500.0,0.00040273,11]
[342949077,1732217453260,-500.0,0.00040273,11]
[342949078,1732217453269,-2000.0,0.00040273,7]
[342949079,1732217453279,-200.0,0.00040273,7]
[342949080,1732217453288,-385.58,0.00040273,11]
[342949081,1732217453297,-500.0,0.00040273,11]
[342949082,1732217453307,-500.0,0.00040273,11]
[342949083,1732217453317,-766.72,0.00040273,11]
[342949084,1732217453326,-444.74,0.00040273,11]
[342949085,1732217453335,-500.0,0.00040273,11]
[342949086,1732217453345,-983.821212,0.00040273,2]
[342949087,1732217453355,-388.14,0.00040273,11]
[342949088,1732217453365,-500.0,0.00040273,11]
[342949089,1732217453375,-500.0,0.00040273,11]
[342949090,1732217453388,-283.89754567,0.00040273,11]
[342949091,1732217453398,-172.09,0.00040273,11]
[342949092,1732217453407,-500.0,0.00040273,11]
[342949093,1732217453417,-500.0,0.00040273,11]
[342949094,1732217453427,-200.0,0.00040273,7]
[342949095,1732217453436,-1774.58,0.00040273,10]
[342949096,1732217453446,-500.0,0.00040273,11]
[342949097,1732217453455,-500.0,0.00040273,11]
[342949098,1732217453465,-500.0,0.00040273,11]
[342949099,1732217453475,-151.0,0.00040273,14]
[342949100,1732217453484,-181.095985,0.00040273,14]
[342949101,1732217453493,-500.0,0.00040273,11]
[342949102,1732217453502,-500.0,0.00040273,11]
[342949103,1732217453511,-1061.2,0.00040273,11]
[342949104,1732217453521,-500.0,0.00040273,11]
[342949105,1732217453530,-500.0,0.00040273,11]
[342949106,1732217453540,-678.05,0.00040273,11]
[342949107,1732217453549,-194.4367,0.00040273,2]
[342949108,1732217453559,-373.418927,0.00040273,14]
[342949109,1732217453568,-373.418927,0.00040273,14]
[342949110,1732217453578,-518.39,0.00040273,11]
[342949111,1732217453588,-2438.63,0.00040273,11]
[342949112,1732217453597,-695.85,0.00040273,11]
[342949113,1732217453606,-1019.62,0.00040273,11]
[342949114,1732217453616,-500.0,0.00040273,11]
[342949115,1732217453626,-151.0,0.00040273,14]
[342949116,1732217453638,-382.551216,0.00040273,14]
[342949117,1732217453649,-151.0,0.00040273,14]
[342949118,1732217453659,-500.0,0.00040273,11]
[342949119,1732217453669,-748.44,0.00040273,11]
[342949120,1732217453679,-382.551216,0.00040273,14]
[342949121,1732217453689,-500.0,0.00040273,11]
[342949122,1732217453699,-500.0,0.00040273,11]
[342949123,1732217453708,-299.50227988,0.00040273,11]
[342949124,1732217453719,-502.27,0.00040273,11]
[342949125,1732217453728,-151.0,0.00040273,14]
[342949126,1732217453739,-151.0,0.00040273,14]
[342949127,1732217453749,-505.55,0.00040273,11]
[342949128,1732217453760,-355.88,0.00040273,11]
[342949129,1732217453770,-224.590002,0.00040273,14]
[342949130,1732217453782,-1116.54,0.00040273,11]
[342949131,1732217453792,-500.0,0.00040273,11]
[342949132,1732217453802,-224.590002,0.00040273,14]
[342949133,1732217453812,-500.0,0.00040273,11]
[342949134,1732217453821,-500.0,0.00040273,11]
[342949135,1732217453831,-1170.921735,0.00040273,14]
[342949136,1732217453841,-639.79,0.00040273,11]
[342949137,1732217453853,-223.142127,0.00040273,14]
[342949138,1732217453864,-1170.921735,0.00040273,14]
[342949139,1732217453874,-1143.93,0.00040273,10]
[342949140,1732217453884,-223.142127,0.00040273,14]
[342949141,1732217453897,-500.0,0.00040273,11]
[342949142,1732217453907,-500.0,0.00040273,11]
[342949143,1732217453917,-777.56,0.00040273,11]
[342949144,1732217453927,-214.527844,0.00040273,14]
[342949145,1732217453936,-214.527844,0.00040273,14]
[342949146,1732217453946,-6107.76,0.00040273,11]
[342949147,1732217453956,-2000.0,0.00040273,7]
[342949148,1732217453967,-1212.16,0.00040273,11]
[342949149,1732217453976,-200.0,0.00040273,7]
[342949150,1732217453986,-415.013785,0.00040273,14]
[342949151,1732217453996,-415.013785,0.00040273,14]
[342949152,1732217454005,-500.0,0.00040273,11]
[342949153,1732217454015,-500.0,0.00040273,11]
[342949154,1732217454025,-1000.0,0.00040274,120]
[342949155,1732217454034,-2324.39490441,0.00040283,15]
[342949156,1732217454044,-3207.1937794,0.00040391,2]
[342949157,1732217454053,-3216.1015072,0.00040391,2]
[342949158,1732217454063,-1200.0,0.00040419,60]
[342949159,1732217454072,-500.0,0.00040419,60]
[342949160,1732217454082,-150.5,0.0004042,120]
[342949161,1732217454091,-868.0,0.0004042,30]
[342949162,1732217454101,-282.28,0.0004042,120]
[342949163,1732217454110,-150.5,0.0004043,120]
[342949164,1732217454120,-868.0,0.0004043,30]
[342949165,1732217454129,-150.5,0.0004043,120]
[342949166,1732217454142,-868.0,0.0004044,30]
[342949167,1732217454151,-150.5,0.0004044,120]
[342949168,1732217454161,-150.5,0.0004044,120]
[342949169,1732217454171,-500.0,0.00040446,11]
[342949170,1732217454180,-500.0,0.00040446,11]
[342949171,1732217454190,-500.0,0.00040446,11]
[342949172,1732217454200,-500.0,0.00040446,11]
[342949173,1732217454210,-500.0,0.00040446,11]
[342949174,1732217454219,-685.18,0.00040446,11]
[342949175,1732217454229,-500.0,0.00040446,11]
[342949176,1732217454238,-500.0,0.00040446,11]
[342949177,1732217454248,-500.0,0.00040446,11]
[342949178,1732217454258,-3088.05,0.00040446,11]
[342949179,1732217454268,-620.25,0.00040446,11]
[342949180,1732217454277,-500.0,0.00040446,11]
[342949181,1732217454287,-500.0,0.00040446,11]
[342949182,1732217454298,-1960.99256899,0.00040446,120]
[342949183,1732217454307,-1081.59,0.00040446,11]
[342949184,1732217454316,-500.0,0.00040446,11]
[342949185,1732217454326,-500.0,0.00040446,11]
[342949186,1732217454336,-500.0,0.00040446,11]
[342949187,1732217454345,-209.19684388,0.00040446,11]
[342949188,1732217454354,-500.0,0.00040446,11]
[342949189,1732217454364,-500.0,0.00040446,11]
[342949190,1732217454373,-200.08821543,0.00040446,11]
[342949191,1732217454383,-548.38,0.00040446,11]
[342949192,1732217454395,-5924.49,0.00040446,2]
[342949193,1732217454404,-741.81,0.00040446,11]
[342949194,1732217454413,-608.57,0.00040446,11]
[342949195,1732217454423,-1091.24,0.00040446,11]
[342949196,1732217454432,-435.25725,0.0004045,2]
[342949197,1732217454634,-4040.14,0.000405,60]
[342949198,1732217454646,-2308.09,0.00040527,2]
[342949199,1732217454656,-500.0,0.00040547,30]
[342949200,1732217454665,-281.725615,0.00040547,14]
[342949201,1732217454674,-299.673936,0.00040547,14]
[342949202,1732217454683,-299.673936,0.00040547,14]
[342949203,1732217454693,-161.735392,0.00040547,14]
[342949204,1732217454702,-161.735392,0.00040547,14]
[342949205,1732217454711,-151.0,0.00040547,14]
[342949206,1732217454722,-219.815437,0.00040547,14]
[342949207,1732217454731,-219.815437,0.00040547,14]
[342949208,1732217454741,-2000.0,0.00040547,15]
[342949209,1732217454750,-500.0,0.00040547,11]
[342949210,1732217454763,-331.49386338,0.00040547,11]
[342949211,1732217454773,-500.0,0.00040547,11]
[342949212,1732217454783,-500.0,0.00040547,11]
[342949213,1732217454793,-766.72,0.00040547,11]
[342949214,1732217454802,-500.0,0.00040547,11]
[342949215,1732217454813,-500.0,0.00040547,11]
[342949216,1732217454823,-500.0,0.00040547,11]
[342949217,1732217454833,-500.0,0.00040547,11]
[342949218,1732217454843,-500.0,0.00040547,11]
[342949219,1732217454852,-1774.58,0.00040547,10]
[342949220,1732217454862,-494.36,0.00040547,11]
[342949221,1732217454872,-261.438561,0.00040547,14]
[342949222,1732217454882,-1256.868843,0.00040547,14]
[342949223,1732217454892,-1256.868843,0.00040547,14]
[342949224,1732217454902,-500.0,0.00040547,11]
[342949225,1732217454912,-500.0,0.00040547,11]
[342949226,1732217454922,-500.0,0.00040547,11]
[342949227,1732217454932,-500.0,0.00040547,11]
[342949228,1732217454942,-1061.2,0.00040547,11]
[342949229,1732217454951,-500.0,0.00040547,11]
[342949230,1732217454961,-500.0,0.00040547,11]
[342949231,1732217454971,-678.05,0.00040547,11]
[342949232,1732217454980,-518.39,0.00040547,11]
[342949233,1732217454990,-2438.63,0.00040547,11]
[342949234,1732217454999,-695.85,0.00040547,11]
[342949235,1732217455009,-500.0,0.00040547,11]
[342949236,1732217455019,-1019.62,0.00040547,11]
[342949237,1732217455028,-500.0,0.00040547,11]
[342949238,1732217455037,-748.44,0.00040547,11]
[342949239,1732217455046,-500.0,0.00040547,11]
[342949240,1732217455056,-500.0,0.00040547,11]
[342949241,1732217455065,-502.27,0.00040547,11]
[342949242,1732217455074,-505.55,0.00040547,11]
[342949243,1732217455084,-1116.54,0.00040547,11]
[342949244,1732217455094,-500.0,0.00040547,11]
[342949245,1732217455103,-500.0,0.00040547,11]
[342949246,1732217455112,-500.0,0.00040547,11]
[342949247,1732217455122,-639.79,0.00040547,11]
[342949248,1732217455131,-1143.93,0.00040547,10]
[342949249,1732217455142,-151.0,0.00040547,14]
[342949250,1732217455153,-417.95,0.00040547,7]
[342949251,1732217455163,-417.95,0.00040547,7]
[342949252,1732217455172,-500.0,0.00040547,11]
[342949253,1732217455181,-500.0,0.00040547,11]
[342949254,1732217455191,-777.56,0.00040547,11]
[342949255,1732217455200,-6107.76,0.00040547,11]
[342949256,1732217455210,-151.0,0.00040547,14]
[342949257,1732217455220,-151.0,0.00040547,14]
[342949258,1732217455229,-1212.16,0.00040547,11]
[342949259,1732217455239,-151.0,0.00040547,14]
[342949260,1732217455248,-500.0,0.00040547,11]
[342949261,1732217455257,-500.0,0.00040547,11]
[342949262,1732217455267,-621.762382,0.00040566,14]
[342949263,1732217455276,-151.0,0.00040566,14]
[342949264,1732217455286,-1029.183445,0.00040566,14]
[342949265,1732217455295,-621.762382,0.00040566,14]
[342949266,1732217455305,-151.0,0.00040566,14]
[342949267,1732217455314,-1029.183445,0.00040566,14]
[342949268,1732217455323,-167.282727,0.00040566,14]
[342949269,1732217455332,-167.282727,0.00040566,14]
[342949270,1732217455341,-151.0,0.00040566,14]
[342949271,1732217455351,-669.909396,0.00040566,14]
[342949272,1732217455360,-669.909396,0.00040566,14]
[342949273,1732217455370,-150.0,0.00040566,2]
[342949274,1732217455379,-629.0,0.00040566,2]
[342949275,1732217455391,-1927.0,0.00040566,2]
[342949276,1732217455400,-817.0,0.00040566,2]
[342949277,1732217455409,-1260.0,0.00040566,2]
[342949278,1732217455418,-919.0,0.00040566,2]
[342949279,1732217455427,-1093.0,0.00040566,2]
[342949280,1732217455437,-1256.0,0.00040566,2]
[342949281,1732217455447,-564.0,0.00040566,2]
[342949282,1732217455457,-241.198,0.00040566,2]
[342949283,1732217455466,-632.0,0.00040566,2]
[342949284,1732217455476,-955.80869,0.0004062,38]
[342949285,1732217455485,-2731.01,0.00040657,120]
[342949286,1732217455495,-2000.0,0.00040665,120]
[342949287,1732217455504,-2000.0,0.00040676,7]
[342949288,1732217455513,-200.0,0.00040676,7]
[342949289,1732217455523,-200.0,0.00040676,7]
[342949290,1732217455532,-200.0,0.00040676,7]
[342949291,1732217455541,-2000.0,0.00040676,7]
[342949292,1732217455550,-200.0,0.00040676,7]
[342949293,1732217455559,-500.0,0.0004072,11]
[342949294,1732217455569,-500.0,0.0004072,11]
[342949295,1732217455579,-500.0,0.0004072,11]
[342949296,1732217455588,-500.0,0.0004072,11]
[342949297,1732217455597,-500.0,0.0004072,11]
[342949298,1732217455606,-685.18,0.0004072,11]
[342949299,1732217455615,-500.0,0.0004072,11]
[342949300,1732217455625,-500.0,0.0004072,11]
[342949301,1732217455634,-500.0,0.0004072,11]
[342949302,1732217455647,-3088.05,0.0004072,11]
[342949303,1732217455657,-620.25,0.0004072,11]
[342949304,1732217455666,-500.0,0.0004072,11]
[342949305,1732217455676,-500.0,0.0004072,11]
[342949306,1732217455685,-1081.59,0.0004072,11]
[342949307,1732217455695,-500.0,0.0004072,11]
[342949308,1732217455704,-500.0,0.0004072,11]
[342949309,1732217455714,-500.0,0.0004072,11]
[342949310,1732217455724,-500.0,0.0004072,11]
[342949311,1732217455733,-500.0,0.0004072,11]
[342949312,1732217455743,-548.38,0.0004072,11]
[342949313,1732217455753,-5924.49,0.0004072,2]
[342949314,1732217455763,-741.81,0.0004072,11]
[342949315,1732217455775,-608.57,0.0004072,11]
[342949316,1732217455785,-1091.24,0.0004072,11]
[342949317,1732217455795,-150.0,0.00040738,2]
[342949318,1732217455806,-150.0,0.00040738,2]
[342949319,1732217455816,-1708.3225925,0.00040754,2]
[342949320,1732217455827,-303.59069534,0.00040761,2]
[342949321,1732217455838,-1048.23305448,0.00040767,2]
[342949322,1732217455848,-246.25367904,0.00040773,2]
[342949323,1732217455858,-878.644322,0.00040773,2]
[342949324,1732217455868,-246.25367904,0.00040776,2]
[342949325,1732217455877,-1048.23305448,0.00040776,2]
[342949326,1732217455889,-1048.23305448,0.00040793,2]
[342949327,1732217455899,-1708.3225925,0.00040798,2]
[342949328,1732217455910,-1048.23305448,0.00040807,2]
[342949329,1732217455919,-496.29039604,0.00040812,2]
[342949330,1732217455930,-1816.09960744,0.00040813,2]
[342949331,1732217455944,-918.25754183,0.00040816,2]
[342949332,1732217455954,-551.50598883,0.0004082,2]
[342949333,1732217455964,-500.0,0.00040821,30]
[342949334,1732217455973,-151.0,0.00040821,14]
[342949335,1732217455983,-151.0,0.00040821,14]
[342949336,1732217455993,-151.0,0.00040821,14]
[342949337,1732217456002,-2000.0,0.00040821,15]
[342949338,1732217456012,-516.08,0.00040821,11]
[342949339,1732217456022,-500.0,0.00040821,11]
[342949340,1732217456032,-500.0,0.00040821,11]
[342949341,1732217456042,-766.72,0.00040821,11]
[342949342,1732217456053,-500.0,0.00040821,11]
[342949343,1732217456062,-500.0,0.00040821,11]
[342949344,1732217456072,-500.0,0.00040821,11]
[342949345,1732217456082,-151.0,0.00040821,14]
[342949346,1732217456091,-151.0,0.00040821,14]
[342949347,1732217456101,-395.860156,0.00040821,14]
[342949348,1732217456111,-395.860156,0.00040821,14]
[342949349,1732217456121,-500.0,0.00040821,11]
[342949350,1732217456130,-532.540821,0.00040821,14]
[342949351,1732217456143,-522.73797,0.00040821,14]
[342949352,1732217456153,-522.73797,0.00040821,14]
[342949353,1732217456162,-532.540821,0.00040821,14]
[342949354,1732217456172,-151.0,0.00040821,14]
[342949355,1732217456181,-151.0,0.00040821,14]
[342949356,1732217456191,-151.0,0.00040821,14]
[342949357,1732217456200,-307.098401,0.00040821,14]
[342949358,1732217456209,-212.117254,0.00040821,7]
[342949359,1732217456219,-307.098401,0.00040821,14]
[342949360,1732217456228,-151.0,0.00040821,14]
[342949361,1732217456237,-151.0,0.00040821,14]
[342949362,1732217456246,-212.117254,0.00040821,7]
[342949363,1732217456256,-204.70567,0.00040821,14]
[342949364,1732217456265,-151.0,0.00040821,14]
[342949365,1732217456275,-608.49379796,0.00040821,11]
[342949366,1732217456284,-151.0,0.00040821,14]
[342949367,1732217456294,-151.0,0.00040821,14]
[342949368,1732217456304,-1774.58,0.00040821,10]
[342949369,1732217456313,-353.394556,0.00040821,14]
[342949370,1732217456323,-570.576073,0.00040821,14]
[342949371,1732217456332,-353.394556,0.00040821,14]
[342949372,1732217456341,-570.576073,0.00040821,14]
[342949373,1732217456351,-588.575198,0.00040821,14]
[342949374,1732217456360,-588.575198,0.00040821,14]
[342949375,1732217456369,-211.0,0.00040821,14]
[342949376,1732217456378,-500.0,0.00040821,11]
[342949377,1732217456388,-500.0,0.00040821,11]
[342949378,1732217456398,-500.0,0.00040821,11]
[342949379,1732217456408,-500.0,0.00040821,11]
[342949380,1732217456418,-1061.2,0.00040821,11]
[342949381,1732217456427,-500.0,0.00040821,11]
[342949382,1732217456436,-500.0,0.00040821,11]
[342949383,1732217456445,-678.05,0.00040821,11]
[342949384,1732217456455,-518.39,0.00040821,11]
[342949385,1732217456464,-2438.63,0.00040821,11]
[342949386,1732217456473,-695.85,0.00040821,11]
[342949387,1732217456483,-500.0,0.00040821,11]
[342949388,1732217456492,-1019.62,0.00040821,11]
[342949389,1732217456503,-748.44,0.00040821,11]
[342949390,1732217456512,-500.0,0.00040821,11]
[342949391,1732217456523,-500.0,0.00040821,11]
[342949392,1732217456533,-500.0,0.00040821,11]
[342949393,1732217456543,-502.27,0.00040821,11]
[342949394,1732217456553,-505.55,0.00040821,11]
[342949395,1732217456563,-1116.54,0.00040821,11]
[342949396,1732217456572,-500.0,0.00040821,11]
[342949397,1732217456582,-500.0,0.00040821,11]
[342949398,1732217456591,-500.0,0.00040821,11]
[342949399,1732217456601,-639.79,0.00040821,11]
[342949400,1732217456611,-1143.93,0.00040821,10]
[342949401,1732217456620,-396.18826484,0.00040821,11]
[342949402,1732217456629,-500.0,0.00040821,11]
[342949403,1732217456638,-777.56,0.00040821,11]
[342949404,1732217456649,-6107.76,0.00040821,11]
[342949405,1732217456658,-1212.16,0.00040821,11]
[342949406,1732217456668,-500.0,0.00040821,11]
[342949407,1732217456677,-500.0,0.00040821,11]
[342949408,1732217456686,-918.25754183,0.00040824,2]
[342949409,1732217456696,-551.50598883,0.00040832,2]
[342949410,1732217456706,-551.50598883,0.00040834,2]
[342949411,1732217456716,-1048.23305448,0.00040834,2]
[342949412,1732217456725,-496.29039604,0.00040836,2]
[342949413,1732217456735,-1708.3225925,0.00040838,2]
[342949414,1732217456744,-246.25367904,0.00040846,2]
[342949415,1732217456753,-496.29039604,0.00040864,2]
[342949416,1732217456768,-878.644322,0.0004087,2]
[342949417,1732217456778,-496.29039604,0.00040874,2]
[342949418,1732217456787,-918.25754183,0.000409,2]
[342949419,1732217456797,-1816.09960744,0.00040906,2]
[342949420,1732217456807,-878.644322,0.00040912,2]
[342949421,1732217456817,-500.0,0.00040916,120]
[342949422,1732217456826,-500.0,0.00040917,7]
[342949423,1732217456835,-500.0,0.00040917,7]
[342949424,1732217456846,-500.0,0.00040917,7]
[342949425,1732217456855,-500.0,0.00040917,7]
[342949426,1732217456864,-500.0,0.00040917,7]
[342949427,1732217456874,-500.0,0.00040917,7]
[342949428,1732217456883,-500.0,0.00040917,7]
[342949429,1732217456894,-500.0,0.00040917,7]
[342949430,1732217456903,-371.76,0.00040917,7]
[342949431,1732217456912,-500.0,0.00040917,7]
[342949432,1732217456921,-500.0,0.00040917,7]
[342949433,1732217456931,-500.0,0.00040917,7]
[342949434,1732217456940,-500.0,0.00040917,7]
[342949435,1732217456949,-500.0,0.00040917,7]
[342949436,1732217456959,-500.0,0.00040917,7]
[342949437,1732217456968,-500.0,0.00040917,7]
[342949438,1732217456978,-500.0,0.00040917,7]
[342949439,1732217456987,-500.0,0.00040917,7]
[342949440,1732217456997,-500.0,0.00040917,7]
[342949441,1732217457006,-500.0,0.00040917,7]
[342949442,1732217457067,-500.0,0.00040917,7]
[342949443,1732217457076,-500.0,0.00040917,7]
[342949444,1732217457085,-500.0,0.00040917,7]
[342949445,1732217457094,-500.0,0.00040917,7]
[342949446,1732217457103,-304.54,0.00040917,7]
[342949447,1732217457112,-500.0,0.00040917,7]
[342949448,1732217457121,-508.69,0.00040917,7]
[342949449,1732217457130,-500.0,0.00040917,7]
[342949450,1732217457140,-500.0,0.00040917,7]
[342949451,1732217457154,-500.0,0.00040917,7]
[342949452,1732217457162,-500.0,0.00040917,7]
[342949453,1732217457171,-500.0,0.00040917,7]
[342949454,1732217457180,-500.0,0.00040917,7]
[342949455,1732217457189,-500.0,0.00040917,7]
[342949456,1732217457197,-500.0,0.00040917,7]
[342949457,1732217457206,-500.0,0.00040917,7]
[342949458,1732217457215,-500.0,0.00040917,7]
[342949459,1732217457224,-500.0,0.00040917,7]
[342949460,1732217457233,-500.0,0.00040917,7]
[342949461,1732217457242,-500.0,0.00040917,7]
[342949462,1732217457251,-500.0,0.00040917,7]
[342949463,1732217457261,-500.0,0.00040917,7]
[342949464,1732217457270,-500.0,0.00040917,7]
[342949465,1732217457280,-500.0,0.00040917,7]
[342949466,1732217457289,-500.0,0.00040917,7]
[342949467,1732217457298,-500.0,0.00040917,7]
[342949468,1732217457307,-500.0,0.00040917,7]
[342949469,1732217457316,-500.0,0.00040917,7]
[342949470,1732217457325,-500.0,0.00040917,7]
[342949471,1732217457334,-500.0,0.00040917,7]
[342949472,1732217457348,-500.0,0.00040917,7]
[342949473,1732217457358,-500.0,0.00040917,7]
[342949474,1732217457367,-500.0,0.00040917,7]
[342949475,1732217457376,-500.0,0.00040917,7]
[342949476,1732217457385,-500.0,0.00040917,7]
[342949477,1732217457398,-500.0,0.00040917,7]
[342949478,1732217457407,-500.0,0.00040917,7]
[342949479,1732217457416,-500.0,0.00040917,7]
[342949480,1732217457426,-500.0,0.00040917,7]
[342949481,1732217457435,-500.0,0.00040917,7]
[342949482,1732217457445,-500.0,0.00040917,7]
[342949483,1732217457454,-500.0,0.00040917,7]
[342949484,1732217457463,-500.0,0.00040917,7]
[342949485,1732217457473,-500.0,0.00040917,7]
[342949486,1732217457482,-500.0,0.00040917,7]
[342949487,1732217457492,-500.0,0.00040917,7]
[342949488,1732217457500,-500.0,0.00040917,7]
[342949489,1732217457509,-500.0,0.00040917,7]
[342949490,1732217457518,-500.0,0.00040917,7]
[342949491,1732217457528,-500.0,0.00040917,7]
[342949492,1732217457537,-500.0,0.00040917,7]
[342949493,1732217457546,-500.0,0.00040917,7]
[342949494,1732217457555,-500.0,0.00040917,7]
[342949495,1732217457564,-500.0,0.00040917,7]
[342949496,1732217457573,-500.0,0.00040917,7]
[342949497,1732217457582,-500.0,0.00040917,7]
[342949498,1732217457592,-500.0,0.00040917,7]
[342949499,1732217457601,-500.0,0.00040917,7]
[342949500,1732217457610,-500.0,0.00040917,7]
[342949501,1732217457619,-500.0,0.00040917,7]
[342949502,1732217457629,-500.0,0.00040917,7]
[342949503,1732217457639,-471.6,0.00040917,7]
[342949504,1732217457652,-500.0,0.00040917,7]
[342949505,1732217457661,-500.0,0.00040917,7]
[342949506,1732217457670,-500.0,0.00040917,7]
[342949507,1732217457679,-500.0,0.00040917,7]
[342949508,1732217457688,-500.0,0.00040917,7]
[342949509,1732217457697,-500.0,0.00040917,7]
[342949510,1732217457706,-500.0,0.00040917,7]
[342949511,1732217457715,-500.0,0.00040917,7]
[342949512,1732217457724,-500.0,0.00040917,7]
[342949513,1732217457733,-500.0,0.00040917,7]
[342949514,1732217457742,-500.0,0.00040917,7]
[342949515,1732217457751,-500.0,0.00040917,7]
[342949516,1732217457761,-500.0,0.00040917,7]
[342949517,1732217457773,-500.0,0.00040917,7]
[342949518,1732217457782,-500.0,0.00040917,7]
[342949519,1732217457791,-500.0,0.00040917,7]
[342949520,1732217457800,-533.73,0.00040917,7]